fUSD/lending_fUSD_20250524
["ID","MTS","AMOUNT","RATE_DAILY","PERIOD"]
[362246182,1748117620464,-1548.76,0.00019753,2]
[362246183,1748117620486,-899.86,0.00019753,2]
[362246184,1748117620508,-585.03,0.00019753,2]
[362246185,1748117620531,-470.64,0.00019753,2]
[362246186,1748117620609,-1548.76,0.0001978,2]
[362246187,1748117620632,-899.86,0.0001978,2]
[362246188,1748117620654,-585.03,0.0001978,2]
[362246189,1748117620675,-470.64,0.0001978,2]
[362246190,1748117620697,-1548.89062114,0.00019808,2]
[362246191,1748117620719,-900.03,0.00019808,2]
[362246192,1748117620741,-585.08,0.00019808,2]
[362246193,1748117620764,-470.7066262,0.00019808,2]
[362246194,1748117620786,-1021.27244055,0.000199,2]
[362246195,1748117620809,-1470.6531643,0.000199,2]
[362246196,1748117620834,-1470.6531643,0.000199,2]
[362246197,1748117620856,-1470.6531643,0.000199,2]
[362246198,1748117620879,-1470.6531643,0.000199,2]
[362246199,1748117620902,-406.96162686,0.000199,2]
[362246200,1748117620927,-1470.6531643,0.000199,2]
[362246201,1748117620952,-1470.6531643,0.000199,2]
[362246202,1748117620976,-1470.6531643,0.000199,2]
[362246203,1748117620998,-1470.6531643,0.000199,2]
[362246204,1748117621021,-291117.7341619,0.0002,2]
[362246205,1748117621044,-1550869.0853346,0.0002,2]
[362246207,1748118104279,365.73,0.00024981,120]
[362246208,1748118104483,365.73,0.00027252,120]
[362246209,1748118279086,150.0,0.000175,2]
[362246210,1748118334389,-350.570366,0.00018,2]
[362246211,1748118334413,-200.0,0.00018035,2]
[362246212,1748118334437,-200.0,0.0001807,2]
[362246213,1748118334458,-250.0,0.0001807,2]
[362246214,1748118334481,-168.88,0.00018075,2]
[362246215,1748118334502,-200.0,0.00018117,2]
[362246216,1748118334523,-321.77,0.0001814,2]
[362246217,1748118334546,-365.73,0.00018168,2]
[362246218,1748118334567,-263.81,0.00018174,2]
[362246219,1748118334587,-443.10279489,0.00018332,2]
[362246220,1748118334608,-372.84,0.00018347,2]
[362246221,1748118334632,-1200.0,0.00018351,2]
[362246222,1748118334654,-23900.0,0.00018352,2]
[362246223,1748118334677,-150.0,0.00018352,7]
[362246224,1748118334698,-1000.0,0.00018414,2]
[362246225,1748118334719,-172.56,0.00018578,2]
[362246226,1748118334739,-2500.0,0.00018978,2]
[362246227,1748118334761,-317.9436,0.00018978,2]
[362246228,1748118334781,-3944.943,0.00018978,2]
[362246229,1748118334802,-6086.2972,0.00018978,2]
[362246230,1748118334822,-227.0364,0.00018978,2]
[362246231,1748118334843,-324.18,0.00019,2]
[362246232,1748118334863,-324.18,0.00019,2]
[362246233,1748118334885,-324.18,0.00019,2]
[362246234,1748118334906,-5984.02327423,0.00019,2]
[362246235,1748118334927,-177.06664215,0.00019,2]
[362246236,1748118335208,-207.4,0.00019067,2]
[362246237,1748118335233,-502.17087753,0.00019073,2]
[362246238,1748118335253,-500.0,0.00019073,2]
[362246239,1748118335277,-158.37012831,0.00019078,2]
[362246240,1748118335303,-1733.05327603,0.00019078,2]
[362246241,1748118406414,732.36,0.00016353,2]
[362246242,1748118426087,-300.0,0.00018351,2]
[362246243,1748118426110,-732.36,0.00018617,2]
[362246244,1748118426132,-200.0,0.00018665,2]
[362246245,1748118426156,-207.0,0.00018707,2]
[362246246,1748118426177,-1000.0,0.00018978,2]
[362246247,1748118426198,-2076.127,0.00018978,2]
[362246248,1748118426219,-300.0,0.00019077,2]
[362246249,1748118426240,-4064.36906288,0.00019078,2]
[362246250,1748118426262,-1000.0,0.00019078,2]
[362246251,1748118426283,-500.0,0.00019078,2]
[362246252,1748118426303,-750.3504,0.00019078,2]
[362246253,1748118426329,-5000.0,0.00019078,2]
[362246254,1748118426350,-1313.2888,0.00019078,2]
[362246255,1748118426371,-35963.1112,0.00019078,2]
[362246256,1748118426393,-78141.7699562,0.00019078,2]
[362246257,1748118431091,-42751.12496246,0.00019078,2]
[362246258,1748118434188,8865.47,0.00011,3]
[362246259,1748118434210,10000.0,0.00011,3]
[362246260,1748118434230,9279.65290334,0.00011,3]
[362246261,1748118441081,-207.4,0.00019067,2]
[362246262,1748118441102,-7089.44680621,0.00019078,2]
[362246263,1748118588879,-250.0,0.00018253,2]
[362246264,1748118588901,-750.0,0.00018267,2]
[362246265,1748118597427,250.0,0.00015,2]
[362246266,1748118598511,300.0,0.00017,2]
[362246412,1748118634078,-0.64995143,0.00018267,2]
[362246422,1748118634167,-2000.35004857,0.00018267,2]
[362246425,1748118634177,-400.0,0.000188,6]
[362246427,1748118634187,-800.0,0.000189,6]
[362246429,1748118634197,-350.0,0.00019,2]
[362246431,1748118634206,-1200.0,0.00019077,2]
[362246433,1748118634216,-158.37012829,0.00019078,2]
[362246435,1748118634226,-2727.47000355,0.00019078,2]
[362246437,1748118634237,-2658.15094332,0.00019078,2]
[362246439,1748118634248,-5217.68010501,0.00019078,2]
[362246441,1748118634258,-79042.55117513,0.00019078,2]
[362246443,1748118634268,-450.2097769,0.00019132,2]
[362246445,1748118634278,-151.0,0.00019166,2]
[362246447,1748118634287,-156.0,0.00019166,2]
[362246449,1748118634297,-151.0,0.00019166,2]
[362246451,1748118634306,-693.3919763,0.00019166,2]
[362246453,1748118634315,-668.65185757,0.00019166,2]
[362246455,1748118634325,-1243.57659104,0.00019166,2]
[362246457,1748118634334,-12.92252217,0.00019168,2]
[362246459,1748118634346,-568.11747783,0.00019168,2]
[362246461,1748118634355,-1017.82340502,0.00019169,2]
[362246463,1748118634367,-1305.86166182,0.00019169,2]
[362246465,1748118634378,-415.09721781,0.00019169,2]
[362246467,1748118634389,-896.89439603,0.00019169,2]
[362246471,1748118634409,-1749.94426612,0.00019169,2]
[362246473,1748118634421,-665.91583304,0.00019169,2]
[362246680,1748118638155,-177.06664211,0.00019078,2]
[362246681,1748118638167,-4551.76427194,0.00019169,2]
[362246682,1748118638178,-641.72674841,0.00019173,2]
[362246683,1748118638191,-501.26697071,0.00019173,2]
[362246684,1748118638201,-533.67723351,0.00019173,2]
[362246685,1748118638210,-500.0,0.00019173,2]
[362246686,1748118638220,-503.32529286,0.00019173,2]
[362246687,1748118638229,-61.69649495,0.00019173,2]
[362246688,1748118638240,-438.30350505,0.00019173,2]
[362246689,1748118638249,-420.0,0.00019178,2]
[362246690,1748118638259,-425.30141075,0.00019178,2]
[362246691,1748118638268,-426.03157292,0.00019178,2]
[362246692,1748118638277,-349.92872686,0.00019178,2]
[362246693,1748118638287,-420.0,0.00019178,2]
[362246694,1748118638296,-399.999999,0.00019178,2]
[362246695,1748118638305,-420.0,0.00019178,2]
[362246696,1748118638314,-420.0,0.00019178,2]
[362246697,1748118638324,-415.02506123,0.00019178,2]
[362246698,1748118638333,-422.64571819,0.00019178,2]
[362246699,1748118638342,-420.0,0.00019178,2]
[362246700,1748118638352,-422.62672303,0.00019178,2]
[362246701,1748118638361,-420.0,0.00019178,2]
[362246702,1748118638371,-420.0,0.00019178,2]
[362246703,1748118638385,-420.0,0.00019178,2]
[362246704,1748118638394,-455.28039278,0.00019178,2]
[362246705,1748118638404,-420.0,0.00019178,2]
[362246706,1748118638413,-174.53337214,0.00019178,2]
[362246707,1748118638424,-420.0,0.00019178,2]
[362246708,1748118638433,-420.0,0.00019178,2]
[362246709,1748118638442,-420.0,0.00019178,2]
[362246710,1748118638451,-420.0,0.00019178,2]
[362246711,1748118638461,-420.0,0.00019178,2]
[362246712,1748118638471,-423.85837692,0.00019178,2]
[362246713,1748118638481,-420.0,0.00019178,2]
[362246714,1748118638490,-420.0,0.00019178,2]
[362246715,1748118638499,-420.0,0.00019178,2]
[362246716,1748118638508,-420.0,0.00019178,2]
[362246717,1748118638518,-420.0,0.00019178,2]
[362246718,1748118638527,-420.0,0.00019178,2]
[362246719,1748118638536,-420.0,0.00019178,2]
[362246720,1748118638546,-420.0,0.00019178,2]
[362246721,1748118638555,-420.0,0.00019178,2]
[362246722,1748118638564,-420.0,0.00019178,2]
[362246723,1748118638574,-290.58611851,0.00019178,2]
[362246724,1748118638583,-420.0,0.00019178,2]
[362246725,1748118638592,-399.84230181,0.00019178,2]
[362246726,1748118638601,-420.0,0.00019178,2]
[362246727,1748118638610,-420.0,0.00019178,2]
[362246728,1748118638619,-420.0,0.00019178,2]
[362246729,1748118638629,-420.0,0.00019178,2]
[362246730,1748118638638,-420.0,0.00019178,2]
[362246731,1748118638648,-420.0,0.00019178,2]
[362246732,1748118638658,-420.0,0.00019178,2]
[362246733,1748118638667,-420.0,0.00019178,2]
[362246734,1748118638678,-420.0,0.00019178,2]
[362246735,1748118638688,-420.0,0.00019178,2]
[362246736,1748118638697,-420.0,0.00019178,2]
[362246737,1748118638707,-420.0,0.00019178,2]
[362246738,1748118638717,-420.0,0.00019178,2]
[362246739,1748118638727,-420.0,0.00019178,2]
[362246740,1748118638736,-420.0,0.00019178,2]
[362246741,1748118638746,-420.0,0.00019178,2]
[362246742,1748118638756,-424.7845852,0.00019178,2]
[362246743,1748118638765,-420.0,0.00019178,2]
[362246744,1748118638775,-420.0,0.00019178,2]
[362246745,1748118638784,-420.0,0.00019178,2]
[362246746,1748118638794,-420.0,0.00019178,2]
[362246747,1748118638804,-420.0,0.00019178,2]
[362246748,1748118638813,-420.0,0.00019178,2]
[362246749,1748118638823,-420.0,0.00019178,2]
[362246750,1748118638832,-420.0,0.00019178,2]
[362246751,1748118638842,-167.74423662,0.00019178,2]
[362246752,1748118638852,-420.0,0.00019178,2]
[362246753,1748118638861,-420.0,0.00019178,2]
[362246754,1748118638871,-420.0,0.00019178,2]
[362246755,1748118638880,-420.0,0.00019178,2]
[362246756,1748118638890,-506.18948659,0.00019178,2]
[362246757,1748118638899,-420.0,0.00019178,2]
[362246758,1748118638909,-420.0,0.00019178,2]
[362246759,1748118638919,-420.0,0.00019178,2]
[362246760,1748118638930,-420.0,0.00019178,2]
[362246761,1748118638940,-420.0,0.00019178,2]
[362246762,1748118638949,-420.0,0.00019178,2]
[362246763,1748118638959,-420.0,0.00019178,2]
[362246764,1748118638968,-420.0,0.00019178,2]
[362246765,1748118638977,-420.0,0.00019178,2]
[362246766,1748118638987,-420.0,0.00019178,2]
[362246767,1748118638996,-420.0,0.00019178,2]
[362246768,1748118639005,-420.0,0.00019178,2]
[362246769,1748118639014,-420.0,0.00019178,2]
[362246770,1748118639024,-422.50768079,0.00019178,2]
[362246771,1748118639033,-420.0,0.00019178,2]
[362246772,1748118639043,-420.0,0.00019178,2]
[362246773,1748118639052,-420.0,0.00019178,2]
[362246774,1748118639061,-420.0,0.00019178,2]
[362246775,1748118639071,-420.0,0.00019178,2]
[362246776,1748118639080,-420.0,0.00019178,2]
[362246777,1748118639091,-423.80159391,0.00019178,2]
[362246778,1748118639100,-420.0,0.00019178,2]
[362246779,1748118639111,-420.0,0.00019178,2]
[362246780,1748118639120,-420.0,0.00019178,2]
[362246781,1748118639129,-423.4392832,0.00019178,2]
[362246782,1748118639139,-426.65812774,0.00019178,2]
[362246783,1748118639148,-420.0,0.00019178,2]
[362246784,1748118639158,-424.75121428,0.00019178,2]
[362246785,1748118639167,-420.0,0.00019178,2]
[362246786,1748118639178,-420.0,0.00019178,2]
[362246787,1748118639187,-232.68214787,0.00019178,2]
[362246788,1748118639196,-420.0,0.00019178,2]
[362246789,1748118639205,-509.14285635,0.00019178,2]
[362246790,1748118639215,-420.0,0.00019178,2]
[362246791,1748118639224,-420.0,0.00019178,2]
[362246792,1748118639233,-347.20283487,0.00019178,2]
[362246793,1748118639243,-337.30660097,0.00019178,2]
[362246794,1748118639252,-423.03237871,0.00019178,2]
[362246795,1748118639262,-420.0,0.00019178,2]
[362246796,1748118639272,-420.0,0.00019178,2]
[362246797,1748118639281,-420.0,0.00019178,2]
[362246798,1748118639290,-420.0,0.00019178,2]
[362246799,1748118639299,-250.0,0.00019178,2]
[362246800,1748118639309,-420.0,0.00019178,2]
[362246801,1748118639320,-420.0,0.00019178,2]
[362246802,1748118639329,-420.0,0.00019178,2]
[362246803,1748118639338,-420.0,0.00019178,2]
[362246804,1748118639348,-420.0,0.00019178,2]
[362246805,1748118639358,-420.0,0.00019178,2]
[362246806,1748118639368,-420.0,0.00019178,2]
[362246807,1748118639382,-420.0,0.00019178,2]
[362246808,1748118639391,-420.0,0.00019178,2]
[362246809,1748118639400,-420.0,0.00019178,2]
[362246810,1748118639410,-420.0,0.00019178,2]
[362246811,1748118639420,-423.74466603,0.00019178,2]
[362246812,1748118639430,-420.0,0.00019178,2]
[362246813,1748118639439,-420.0,0.00019178,2]
[362246814,1748118639448,-420.0,0.00019178,2]
[362246815,1748118639458,-420.0,0.00019178,2]
[362246816,1748118639467,-420.0,0.00019178,2]
[362246817,1748118639477,-420.0,0.00019178,2]
[362246818,1748118639487,-420.0,0.00019178,2]
[362246819,1748118639496,-420.0,0.00019178,2]
[362246820,1748118639506,-420.0,0.00019178,2]
[362246821,1748118639515,-426.48975654,0.00019178,2]
[362246822,1748118639524,-423.87399003,0.00019178,2]
[362246823,1748118639534,-420.0,0.00019178,2]
[362246824,1748118639544,-420.0,0.00019178,2]
[362246825,1748118639555,-367.8197866,0.00019178,2]
[362246826,1748118639563,-420.0,0.00019178,2]
[362246827,1748118639575,-420.0,0.00019178,2]
[362246828,1748118639583,-420.0,0.00019178,2]
[362246829,1748118639594,-420.0,0.00019178,2]
[362246830,1748118639603,-420.0,0.00019178,2]
[362246831,1748118639612,-420.0,0.00019178,2]
[362246832,1748118639621,-420.0,0.00019178,2]
[362246833,1748118639631,-420.0,0.00019178,2]
[362246834,1748118639640,-420.0,0.00019178,2]
[362246835,1748118639649,-420.0,0.00019178,2]
[362246836,1748118639658,-420.0,0.00019178,2]
[362246837,1748118639667,-420.0,0.00019178,2]
[362246838,1748118639677,-420.0,0.00019178,2]
[362246839,1748118639686,-420.0,0.00019178,2]
[362246840,1748118639695,-369.0301354,0.00019178,2]
[362246841,1748118639704,-420.0,0.00019178,2]
[362246842,1748118639714,-420.0,0.00019178,2]
[362246843,1748118639723,-420.0,0.00019178,2]
[362246844,1748118639732,-420.0,0.00019178,2]
[362246845,1748118639741,-420.0,0.00019178,2]
[362246846,1748118639750,-422.53638162,0.00019178,2]
[362246847,1748118639760,-420.0,0.00019178,2]
[362246848,1748118639773,-420.0,0.00019178,2]
[362246849,1748118639782,-402.14667978,0.00019178,2]
[362246850,1748118639792,-420.0,0.00019178,2]
[362246851,1748118639801,-420.0,0.00019178,2]
[362246852,1748118639811,-424.38125476,0.00019178,2]
[362246853,1748118639821,-420.0,0.00019178,2]
[362246854,1748118639830,-424.51426428,0.00019178,2]
[362246855,1748118639840,-420.0,0.00019178,2]
[362246856,1748118639849,-420.0,0.00019178,2]
[362246857,1748118639858,-420.0,0.00019178,2]
[362246858,1748118639868,-420.0,0.00019178,2]
[362246859,1748118639878,-249.4639545,0.00019178,2]
[362246860,1748118639889,-427.47906415,0.00019178,2]
[362246861,1748118639898,-422.59368819,0.00019178,2]
[362246862,1748118639907,-420.0,0.00019178,2]
[362246863,1748118639917,-420.0,0.00019178,2]
[362246864,1748118639927,-420.0,0.00019178,2]
[362246865,1748118639936,-420.0,0.00019178,2]
[362246866,1748118639945,-420.0,0.00019178,2]
[362246867,1748118639955,-420.0,0.00019178,2]
[362246868,1748118639964,-420.0,0.00019178,2]
[362246869,1748118639973,-420.0,0.00019178,2]
[362246870,1748118639982,-420.0,0.00019178,2]
[362246871,1748118639991,-200.0457828,0.00019178,2]
[362246872,1748118640000,-420.0,0.00019178,2]
[362246873,1748118640010,-423.58090187,0.00019178,2]
[362246874,1748118640019,-422.75944353,0.00019178,2]
[362246875,1748118640028,-420.0,0.00019178,2]
[362246876,1748118640037,-428.12,0.00019178,2]
[362246877,1748118640046,-420.0,0.00019178,2]
[362246878,1748118640055,-420.0,0.00019178,2]
[362246879,1748118640064,-503.11552509,0.00019178,2]
[362246880,1748118640073,-420.0,0.00019178,2]
[362246882,1748118640082,-438.52702691,0.00019178,2]
[362246883,1748118640091,-420.0,0.00019178,2]
[362246884,1748118640100,-420.0,0.00019178,2]
[362246885,1748118640109,-420.0,0.00019178,2]
[362246886,1748118640118,-420.0,0.00019178,2]
[362246887,1748118640127,-420.0,0.00019178,2]
[362246888,1748118640136,-420.0,0.00019178,2]
[362246889,1748118640147,-420.0,0.00019178,2]
[362246890,1748118640157,-420.0,0.00019178,2]
[362246891,1748118640167,-420.0,0.00019178,2]
[362246892,1748118640178,-420.0,0.00019178,2]
[362246893,1748118640187,-420.0,0.00019178,2]
[362246894,1748118640197,-424.03619239,0.00019178,2]
[362246895,1748118640207,-423.30344056,0.00019178,2]
[362246896,1748118640216,-422.8074332,0.00019178,2]
[362246897,1748118640226,-420.0,0.00019178,2]
[362246898,1748118640235,-420.0,0.00019178,2]
[362246899,1748118640244,-420.0,0.00019178,2]
[362246900,1748118640254,-342.85533758,0.00019178,2]
[362246901,1748118640263,-420.0,0.00019178,2]
[362246902,1748118640272,-420.0,0.00019178,2]
[362246903,1748118640282,-420.0,0.00019178,2]
[362246904,1748118640291,-420.0,0.00019178,2]
[362246905,1748118640302,-422.9126173,0.00019178,2]
[362246906,1748118640312,-420.0,0.00019178,2]
[362246907,1748118640322,-420.0,0.00019178,2]
[362246908,1748118640331,-420.0,0.00019178,2]
[362246909,1748118640340,-410.96251782,0.00019178,2]
[362246910,1748118640350,-420.0,0.00019178,2]
[362246911,1748118640359,-420.0,0.00019178,2]
[362246912,1748118640368,-235.58973935,0.00019178,2]
[362246913,1748118640382,-438.66258437,0.00019178,2]
[362246914,1748118640391,-420.0,0.00019178,2]
[362246915,1748118640400,-420.0,0.00019178,2]
[362246916,1748118640409,-420.0,0.00019178,2]
[362246917,1748118640419,-420.0,0.00019178,2]
[362246918,1748118640430,-420.0,0.00019178,2]
[362246919,1748118640439,-420.0,0.00019178,2]
[362246920,1748118640448,-420.0,0.00019178,2]
[362246921,1748118640459,-420.0,0.00019178,2]
[362246922,1748118640468,-420.0,0.00019178,2]
[362246923,1748118640478,-420.0,0.00019178,2]
[362246924,1748118640487,-420.0,0.00019178,2]
[362246925,1748118640497,-420.0,0.00019178,2]
[362246926,1748118640506,-420.0,0.00019178,2]
[362246927,1748118640515,-426.53061605,0.00019178,2]
[362246928,1748118640525,-427.40867712,0.00019178,2]
[362246929,1748118640535,-420.0,0.00019178,2]
[362246930,1748118640544,-420.0,0.00019178,2]
[362246931,1748118640553,-420.0,0.00019178,2]
[362246932,1748118640563,-433.65700468,0.00019178,2]
[362246933,1748118640571,-420.0,0.00019178,2]
[362246934,1748118640581,-420.0,0.00019178,2]
[362246935,1748118640592,-431.32412655,0.00019178,2]
[362246937,1748118640601,-420.0,0.00019178,2]
[362246938,1748118640612,-428.73866196,0.00019178,2]
[362246939,1748118640622,-420.0,0.00019178,2]
[362246940,1748118640633,-451.24891994,0.00019178,2]
[362246941,1748118640644,-420.0,0.00019178,2]
[362246942,1748118640654,-420.0,0.00019178,2]
[362246943,1748118640663,-461.98829718,0.00019178,2]
[362246944,1748118640673,-420.0,0.00019178,2]
[362246945,1748118640683,-420.0,0.00019178,2]
[362246946,1748118640692,-420.0,0.00019178,2]
[362246947,1748118640701,-420.0,0.00019178,2]
[362246948,1748118640710,-420.0,0.00019178,2]
[362246949,1748118640721,-420.0,0.00019178,2]
[362246950,1748118640730,-420.0,0.00019178,2]
[362246951,1748118640739,-403.28077251,0.00019178,2]
[362246952,1748118640749,-420.0,0.00019178,2]
[362246953,1748118640758,-420.0,0.00019178,2]
[362246954,1748118640768,-420.0,0.00019178,2]
[362246955,1748118640777,-420.0,0.00019178,2]
[362246956,1748118640787,-420.0,0.00019178,2]
[362246957,1748118640796,-420.0,0.00019178,2]
[362246958,1748118640806,-420.0,0.00019178,2]
[362246959,1748118640815,-425.99899381,0.00019178,2]
[362246960,1748118640824,-425.98941076,0.00019178,2]
[362246961,1748118640834,-400.468011,0.00019178,2]
[362246962,1748118640844,-420.0,0.00019178,2]
[362246963,1748118640855,-420.0,0.00019178,2]
[362246964,1748118640864,-425.05979882,0.00019178,2]
[362246965,1748118640873,-420.0,0.00019178,2]
[362246966,1748118640883,-420.0,0.00019178,2]
[362246967,1748118640892,-429.22700194,0.00019178,2]
[362246968,1748118640901,-420.0,0.00019178,2]
[362246969,1748118640910,-426.56694232,0.00019178,2]
[362246970,1748118640920,-301.03021347,0.00019178,2]
[362246971,1748118640932,-420.0,0.00019178,2]
[362246972,1748118640941,-420.0,0.00019178,2]
[362246973,1748118640950,-426.09827732,0.00019178,2]
[362246974,1748118640959,-420.0,0.00019178,2]
[362246975,1748118640968,-420.0,0.00019178,2]
[362246976,1748118640977,-427.2313606,0.00019178,2]
[362246977,1748118640986,-420.0,0.00019178,2]
[362246978,1748118640996,-420.0,0.00019178,2]
[362246979,1748118641007,-426.95580377,0.00019178,2]
[362246980,1748118641017,-420.0,0.00019178,2]
[362246981,1748118641026,-420.0,0.00019178,2]
[362246982,1748118641035,-356.36705769,0.00019178,2]
[362246983,1748118641044,-420.0,0.00019178,2]
[362246984,1748118641053,-420.0,0.00019178,2]
[362246985,1748118641062,-420.0,0.00019178,2]
[362246986,1748118641072,-420.0,0.00019178,2]
[362246987,1748118641081,-420.0,0.00019178,2]
[362246988,1748118641090,-420.0,0.00019178,2]
[362246989,1748118641099,-287.88680247,0.00019178,2]
[362246990,1748118641108,-420.0,0.00019178,2]
[362246991,1748118641119,-420.0,0.00019178,2]
[362246992,1748118641129,-426.62400192,0.00019178,2]
[362246993,1748118641139,-423.11931894,0.00019178,2]
[362246994,1748118641148,-425.77651266,0.00019178,2]
[362246995,1748118641158,-420.0,0.00019178,2]
[362246996,1748118641167,-428.5898493,0.00019178,2]
[362246997,1748118641178,-420.0,0.00019178,2]
[362246998,1748118641187,-432.04202889,0.00019178,2]
[362246999,1748118641196,-420.0,0.00019178,2]
[362247000,1748118641205,-420.0,0.00019178,2]
[362247001,1748118641214,-420.0,0.00019178,2]
[362247002,1748118641224,-420.0,0.00019178,2]
[362247003,1748118641233,-420.0,0.00019178,2]
[362247004,1748118641242,-420.0,0.00019178,2]
[362247005,1748118641251,-420.0,0.00019178,2]
[362247006,1748118641260,-420.0,0.00019178,2]
[362247007,1748118641268,-420.0,0.00019178,2]
[362247008,1748118641278,-420.0,0.00019178,2]
[362247009,1748118641287,-425.97730453,0.00019178,2]
[362247010,1748118641296,-420.0,0.00019178,2]
[362247011,1748118641306,-420.0,0.00019178,2]
[362247012,1748118641316,-420.0,0.00019178,2]
[362247013,1748118641325,-434.18399626,0.00019178,2]
[362247014,1748118641334,-420.0,0.00019178,2]
[362247015,1748118641345,-420.0,0.00019178,2]
[362247016,1748118641354,-430.60483128,0.00019178,2]
[362247017,1748118641365,-429.30462305,0.00019178,2]
[362247018,1748118641379,-420.0,0.00019178,2]
[362247019,1748118641389,-420.0,0.00019178,2]
[362247020,1748118641399,-420.0,0.00019178,2]
[362247021,1748118641409,-420.0,0.00019178,2]
[362247022,1748118641420,-420.0,0.00019178,2]
[362247023,1748118641432,-420.0,0.00019178,2]
[362247024,1748118641440,-1000.0,0.00019178,2]
[362247025,1748118641450,-420.0,0.00019178,2]
[362247026,1748118641460,-420.0,0.00019178,2]
[362247027,1748118641471,-420.0,0.00019178,2]
[362247028,1748118641715,-426.81826791,0.00019178,2]
[362247029,1748118641727,-420.0,0.00019178,2]
[362247030,1748118641737,-420.0,0.00019178,2]
[362247031,1748118641746,-420.0,0.00019178,2]
[362247032,1748118641756,-420.0,0.00019178,2]
[362247033,1748118641766,-420.0,0.00019178,2]
[362247034,1748118641775,-431.24114124,0.00019178,2]
[362247035,1748118641785,-420.0,0.00019178,2]
[362247036,1748118641794,-420.0,0.00019178,2]
[362247037,1748118641804,-420.0,0.00019178,2]
[362247038,1748118641813,-420.0,0.00019178,2]
[362247039,1748118641823,-420.0,0.00019178,2]
[362247040,1748118641832,-427.52576193,0.00019178,2]
[362247041,1748118641841,-420.0,0.00019178,2]
[362247042,1748118641851,-420.0,0.00019178,2]
[362247043,1748118641860,-420.0,0.00019178,2]
[362247044,1748118641870,-420.0,0.00019178,2]
[362247045,1748118641879,-420.0,0.00019178,2]
[362247046,1748118641889,-420.0,0.00019178,2]
[362247047,1748118641898,-420.0,0.00019178,2]
[362247048,1748118641908,-427.33906595,0.00019178,2]
[362247049,1748118641917,-420.0,0.00019178,2]
[362247050,1748118641928,-158.30931709,0.00019178,2]
[362247051,1748118641937,-420.0,0.00019178,2]
[362247052,1748118641946,-420.0,0.00019178,2]
[362247053,1748118641956,-420.0,0.00019178,2]
[362247054,1748118641965,-420.0,0.00019178,2]
[362247055,1748118641974,-420.0,0.00019178,2]
[362247056,1748118641983,-420.0,0.00019178,2]
[362247057,1748118641992,-420.0,0.00019178,2]
[362247058,1748118642001,-420.0,0.00019178,2]
[362247059,1748118642010,-420.0,0.00019178,2]
[362247060,1748118642020,-420.0,0.00019178,2]
[362247061,1748118642029,-420.0,0.00019178,2]
[362247062,1748118642038,-420.0,0.00019178,2]
[362247063,1748118642047,-420.0,0.00019178,2]
[362247064,1748118642057,-420.0,0.00019178,2]
[362247065,1748118642066,-431.38874831,0.00019178,2]
[362247066,1748118642075,-420.0,0.00019178,2]
[362247067,1748118642084,-420.0,0.00019178,2]
[362247068,1748118642093,-420.0,0.00019178,2]
[362247069,1748118642103,-420.0,0.00019178,2]
[362247070,1748118642111,-420.0,0.00019178,2]
[362247071,1748118642120,-420.0,0.00019178,2]